bitfinex-derivatives/quotes_SOLF0:USTF0_20240902
["timestamp","ask_amount","ask_price","bid_price","bid_amount"]
[1725259854731,0.04923331,128.94,128.91,0.0590669]
[1725259855833,9.75723331,128.94,128.91,0.0590669]
[1725259856026,9.75723331,128.94,128.85,3.8804]
[1725259856027,3.8795,128.89,128.85,3.8804]
[1725259856226,3.8795,128.89,128.83,8.36]
[1725259856227,3.94555855,128.88,128.83,8.36]
[1725259857036,3.94555855,128.88,128.84,3.93890998]
[1725259857037,0.05867382,128.87,128.84,3.93890998]
[1725259858541,0.05867382,128.87,128.84,0.05810998]
[1725259858743,0.05867382,128.87,128.85,8.36]
[1725259860438,0.05867382,128.87,128.86,3.8803]
[1725259863348,12.5389,128.94,128.88,3.8796]
[1725259863739,12.5389,128.94,128.87,8.36]
[1725259863936,1.348,128.94,128.89,8.36]
[1725259864139,1.348,128.94,128.91,8.36]
[1725259864352,0.05511617,128.94,128.91,8.41252846]
[1725259864558,0.05511617,128.94,128.93,3.8782]
[1725259867642,1.4018,128.99,128.92,8.36]
[1725259867643,6.74032361,129.02,128.92,41.8]
[1725259867843,6.74032361,129.02,128.96,8.36]
[1725259868136,5.31482361,129.02,128.96,8.36]
[1725259868347,5.31482361,129.02,128.98,3.8765]
[1725259868549,0.05235049,129.01,128.99,0.05094706]
[1725259870453,3.92815049,129.01,128.99,0.05094706]
[1725259872147,3.92815049,129.01,128.91,1.3704]
[1725259872148,0.05235049,129.01,128.91,1.3704]
[1725259872348,8.36,128.99,128.92,8.36]
[1725259872553,13.6985,129.0,128.95,3.8774]
[1725259873153,0.05092098,128.99,128.96,0.05574211]
[1725259874154,3.8768,128.98,128.96,0.05574211]
[1725259876058,12.28742098,128.99,128.96,0.05574211]
[1725259876257,0.05092098,128.99,128.96,0.05574211]
[1725259878659,3.92762098,128.99,128.96,0.05574211]
[1725259879060,3.8768,128.98,128.96,0.05574211]
[1725259884065,3.92732098,128.99,128.96,0.05574211]
[1725259885169,3.8781,128.94,128.85,2.869]
[1725259885473,3.82986495,128.93,128.87,8.36]
[1725259886061,0.05468998,128.91,128.89,0.05105623]
[1725259886463,0.05468998,128.91,128.89,3.93025623]
[1725259889759,0.05468998,128.91,128.89,0.05105623]
[1725259890263,8.41468998,128.91,128.81,3.86516952]
[1725259890466,37.26986495,128.93,128.81,3.86516952]
[1725259890467,8.36,128.89,128.81,8.36]
[1725259891364,0.05684053,128.86,128.84,3.93036103]
[1725259891564,0.05684053,128.86,128.84,0.04946103]
[1725259891770,0.05684053,128.86,128.84,8.40946103]
[1725259891973,0.05684053,128.86,128.85,3.8806]
[1725259894979,0.05684053,128.86,128.84,3.93026103]
[1725259895360,0.05684053,128.86,128.84,0.04946103]
[1725259896273,3.85485403,128.86,128.84,0.04946103]
[1725259897366,0.05684053,128.86,128.84,0.04946103]
[1725259899373,0.05684053,128.86,128.85,3.8806]
[1725259901476,1.4371,128.92,128.88,3.8797]
[1725259902178,1.4371,128.92,128.87,8.36]
[1725259902372,0.05446658,128.91,128.89,3.8792]
[1725259903174,0.05446658,128.91,128.88,3.93397787]
[1725259904977,0.05446658,128.91,128.88,0.05427787]
[1725259906276,3.93346658,128.91,128.88,0.05427787]
[1725259907179,0.05446658,128.91,128.88,3.93397787]
[1725259912388,0.05446658,128.91,128.88,0.05427787]
[1725259913783,3.93356658,128.91,128.88,0.05427787]
[1725259915274,3.8792,128.9,128.88,0.05427787]
[1725259917881,3.93346658,128.91,128.88,0.05427787]
[1725259918087,0.05446658,128.91,128.88,0.05427787]
[1725259919285,3.93326658,128.91,128.88,0.05427787]
[1725259920989,3.8792,128.9,128.88,0.05427787]
[1725259921185,0.05446658,128.91,128.88,0.05427787]
[1725259921406,20.89446658,128.91,128.88,0.05427787]
[1725259922318,20.84,128.91,128.81,102.13493809]
[1725259923401,3.93829282,128.87,128.85,0.05679698]
[1725259926707,3.90764722,128.86,128.85,0.05679698]
[1725259926910,7.78794722,128.86,128.85,0.05679698]
[1725259931207,16.13794722,128.86,128.85,0.05679698]
[1725259932206,12.25764722,128.86,128.81,102.13493809]
[1725259932413,12.25764722,128.86,128.75,9.7427]
[1725259932414,8.35,128.84,128.75,9.7427]
[1725259932714,8.35,128.84,128.78,3.8827]
[1725259932906,3.882,128.81,128.72,95.45122471]
[1725259933108,3.882,128.81,128.74,8.35]
[1725259933405,0.05892149,128.79,128.76,0.05484051]
[1725259934608,3.9963689,128.79,128.76,0.05484051]
[1725259935410,0.05892149,128.79,128.76,0.05484051]
[1725259935815,0.05892149,128.79,128.77,3.883]
[1725259936016,0.05892149,128.79,128.76,0.05484051]
[1725259937310,0.05892149,128.79,128.76,3.93804051]
[1725259939217,0.05892149,128.79,128.76,0.05484051]
[1725259940310,3.8828,128.78,128.76,0.05484051]
[1725259942404,0.05892149,128.79,128.77,3.883]
[1725259942609,0.05892149,128.79,128.76,0.05484051]
[1725259942810,0.05892149,128.79,128.78,8.35]
[1725259943308,0.05892149,128.79,128.78,12.2327]
[1725259944007,3.881,128.84,128.8,3.8821]
[1725259944213,25.1524,128.88,128.77,2.7458]
[1725259944800,3.93247169,128.84,128.81,0.05428274]
[1725259945001,7.73760519,128.84,128.81,0.05428274]
[1725259950507,3.8812,128.83,128.81,0.05428274]
[1725259950811,3.85660519,128.84,128.81,0.05428274]
[1725259951511,3.8814,128.83,128.81,0.05428274]
[1725259951714,3.85660519,128.84,128.81,0.05428274]
[1725259952215,3.8812,128.83,128.81,0.05428274]
[1725259952709,3.85660519,128.84,128.81,0.05428274]
[1725259953644,3.8812,128.83,128.81,0.05428274]
[1725259955015,3.8815,128.82,128.81,0.05428274]
[1725259957826,5.2953,128.83,128.81,0.05428274]
[1725259959119,3.8815,128.82,128.81,0.05428274]
[1725259962627,3.8815,128.82,128.73,2.8168]
[1725259962628,20.87,128.82,128.73,2.8168]
[1725259962817,23.8298,128.82,128.73,2.8168]
[1725259963522,0.04997026,128.79,128.76,0.0596962]
[1725259966427,3.8828,128.78,128.76,0.0596962]
[1725259969629,3.89376407,128.77,128.76,0.0596962]
[1725259970338,3.8828,128.78,128.76,0.0596962]
[1725259970840,3.86464238,128.77,128.76,0.0596962]
[1725259971537,3.8828,128.78,128.76,0.0596962]
[1725259972237,3.92443892,128.77,128.76,0.0596962]
[1725259973739,3.8828,128.78,128.76,0.0596962]
[1725259976339,3.93257026,128.79,128.76,0.0596962]
[1725259976641,0.04997026,128.79,128.76,0.0596962]
[1725259976832,0.04997026,128.79,128.76,3.9429962]
[1725259977636,3.93237026,128.79,128.76,0.0596962]
[1725259980244,3.93237026,128.79,128.76,3.9428962]
[1725259980443,0.04997026,128.79,128.76,3.9428962]
[1725259980845,0.04997026,128.79,128.77,3.8829]
[1725259982839,0.04997026,128.79,128.76,3.9428962]
[1725259983045,3.93247026,128.79,128.76,3.9428962]
[1725259985643,3.93247026,128.79,128.76,0.0596962]
[1725259986745,3.8828,128.78,128.76,0.0596962]
[1725259989948,7.6750323,128.77,128.76,0.0596962]
[1725259990145,3.883,128.77,128.76,0.0596962]
[1725259990740,7.81054966,128.77,128.76,0.0596962]
[1725259990946,3.883,128.77,128.76,0.0596962]
[1725259991645,7.7293891,128.77,128.76,0.0596962]
[1725259994550,0.04997026,128.79,128.76,0.0596962]
[1725259996150,3.93247026,128.79,128.76,0.0596962]
[1725259996352,0.04997026,128.79,128.76,0.0596962]
[1725259997449,0.04997026,128.79,128.76,3.9429962]
[1725259998555,3.883,128.77,128.76,0.0596962]
[1725259998760,16.08521402,128.77,128.76,0.0596962]
[1725259999561,16.08521402,128.77,128.72,95.45122471]
[1725259999562,12.20221402,128.77,128.72,95.45122471]
[1725259999850,13.67701402,128.77,128.72,95.45122471]
[1725260000650,0.05508528,128.76,128.73,0.05497557]
[1725260000846,3.8837,128.75,128.73,0.05497557]
[1725260003658,3.8839,128.74,128.73,0.05497557]
[1725260005966,3.8837,128.75,128.73,0.05497557]
[1725260007371,3.93858528,128.76,128.73,0.05497557]
[1725260014485,3.8839,128.74,128.73,0.05497557]
[1725260015085,13.71278528,128.76,128.73,0.05497557]
[1725260015580,9.82938528,128.76,128.73,0.05497557]
[1725260015981,13.71278528,128.76,128.73,0.05497557]
[1725260016483,8.35,128.75,128.73,0.05497557]
[1725260016786,9.82938528,128.76,128.73,0.05497557]
[1725260017574,8.40508528,128.76,128.73,0.05497557]
[1725260018883,0.05508528,128.76,128.73,0.05497557]
[1725260019091,0.05508528,128.76,128.73,8.40497557]
[1725260019683,0.05508528,128.76,128.75,3.8836]
[1725260020681,0.05508528,128.76,128.74,3.8838]
[1725260021280,0.05508528,128.76,128.73,0.05497557]
[1725260021493,0.05508528,128.76,128.73,8.40497557]
[1725260022394,0.05508528,128.76,128.75,3.8836]
[1725260029217,1.3516,128.81,128.79,3.8822]
[1725260030098,1.3516,128.81,128.78,3.8826]
[1725260030398,1.4027805,128.81,128.78,3.93686833]
[1725260030699,1.4027805,128.81,128.78,0.05426833]
[1725260032002,5.2846805,128.81,128.78,0.05426833]
[1725260033101,1.4027805,128.81,128.78,3.93696833]
[1725260035404,0.0511805,128.81,128.78,0.05426833]
[1725260035904,0.0511805,128.81,128.79,3.8824]
[1725260036099,0.0511805,128.81,128.78,0.05426833]
[1725260036496,0.0511805,128.81,128.8,3.8821]
[1725260038194,0.0511805,128.81,128.8,12.2321]
[1725260040802,2.8912,128.9,128.8,8.35]
[1725260041008,11.2412,128.9,128.82,8.35]
[1725260041203,2.8912,128.9,128.83,3.91058274]
[1725260041501,11.2412,128.9,128.83,3.91058274]
[1725260041806,0.05618349,128.88,128.85,3.93861843]
[1725260042308,0.05618349,128.88,128.85,3.93881843]
[1725260043010,0.05618349,128.88,128.85,0.05821843]
[1725260043505,0.05618349,128.88,128.86,3.8803]
[1725260044299,0.05618349,128.88,128.87,3.88]
[1725260061513,0.05618349,128.88,128.87,12.23]
[1725260070114,0.05618349,128.88,128.87,3.88]
[1725260070326,0.05618349,128.88,128.87,12.23]
[1725260077930,0.05618349,128.88,128.87,3.88]
[1725260078128,0.05618349,128.88,128.87,12.23]
[1725260084937,6.8163,128.95,128.91,3.8788]
[1725260085235,2.9385,128.95,128.91,3.8788]
[1725260085437,1.4598,128.95,128.92,3.8785]
[1725260086036,1.51236683,128.95,128.92,3.93070952]
[1725260087525,1.51236683,128.95,128.93,3.8782]
[1725260087732,1.51236683,128.95,128.93,12.2282]
[1725260088337,0.05256683,128.95,128.94,3.8779]
[1725260089338,0.05256683,128.95,128.94,12.2279]
[1725260096043,5.20061901,128.99,128.94,12.2279]
[1725260096044,1.4039,128.99,128.97,3.8769]
[1725260096244,1.4039,128.99,128.97,12.2269]
[1725260097143,1.45307183,128.99,128.97,12.27583204]
[1725260098947,0.04917183,128.99,128.97,12.27583204]
[1725260100539,0.04917183,128.99,128.97,8.39893204]
[1725260100846,3.95985565,128.99,128.97,0.04893204]
[1725260101048,0.04917183,128.99,128.97,0.04893204]
[1725260102345,3.9819521,128.99,128.97,0.04893204]
[1725260103851,0.04917183,128.99,128.97,3.92583204]
[1725260104146,0.04917183,128.99,128.97,0.04893204]
[1725260105737,7.83674672,128.99,128.94,3.8778]
[1725260105955,2.7509,128.98,128.9,88.27332451]
[1725260106144,3.8771,128.97,128.91,8.35]
[1725260106346,6.60110665,128.98,128.93,12.2281]
[1725260106746,0.05273861,128.97,128.94,0.04940942]
[1725260108544,0.05273861,128.97,128.94,3.92730942]
[1725260108747,0.05273861,128.97,128.94,8.39940942]
[1725260109044,0.05273861,128.97,128.96,8.35]
[1725260110347,0.05273861,128.97,128.96,12.2273]
[1725260110747,0.05273861,128.97,128.96,8.35]
[1725260114553,0.05273861,128.97,128.95,3.8774]
[1725260115357,0.05273861,128.97,128.94,12.27720942]
[1725260117456,0.05273861,128.97,128.95,8.35]
[1725260121964,0.05273861,128.97,128.94,8.39940942]
[1725260124151,0.05273861,128.97,128.94,12.27730942]
[1725260126364,3.92983861,128.97,128.94,0.04940942]
[1725260126560,0.05273861,128.97,128.94,0.04940942]
[1725260126768,9.7642,128.96,128.82,0.1462]
[1725260127057,9.7304,128.95,128.84,2.8212]
[1725260127256,9.7304,128.95,128.88,8.35]
[1725260127456,9.7304,128.95,128.88,12.2295]
[1725260127457,3.8784,128.93,128.88,12.2295]
[1725260127655,0.05707872,128.92,128.89,0.05814607]
[1725260128162,0.05707872,128.92,128.89,8.40814607]
[1725260129059,0.05707872,128.92,128.9,3.8789]
[1725260136367,0.05707872,128.92,128.89,12.28744607]
[1725260136676,0.05707872,128.92,128.89,8.40814607]
[1725260137070,0.05707872,128.92,128.89,0.05814607]
[1725260140070,4.01604233,128.92,128.89,0.05814607]
[1725260140278,3.8791,128.9,128.89,0.05814607]
[1725260141476,5.3355,128.91,128.89,0.05814607]
[1725260143277,3.8789,128.91,128.89,0.05814607]
[1725260145872,4.01604233,128.92,128.89,0.05814607]
[1725260147171,4.01604233,128.92,128.89,3.93754607]
[1725260147374,0.05707872,128.92,128.89,12.28754607]
[1725260148478,0.05707872,128.92,128.9,3.8789]
[1725260148670,0.05707872,128.92,128.89,8.40814607]
[1725260150275,0.05707872,128.92,128.89,12.28744607]
[1725260151078,3.8791,128.9,128.89,0.05814607]
[1725260151479,3.90851114,128.92,128.89,0.05814607]
[1725260151680,3.879,128.91,128.89,0.05814607]
[1725260153885,7.78711114,128.92,128.89,0.05814607]
[1725260154271,3.8789,128.91,128.89,0.05814607]
[1725260156381,7.78711114,128.92,128.89,0.05814607]
[1725260157487,3.8788,128.91,128.89,0.05814607]
[1725260157674,12.25851114,128.92,128.89,0.05814607]
[1725260159192,3.8791,128.9,128.89,0.05814607]
[1725260162281,3.8789,128.91,128.89,0.05814607]
[1725260164388,0.05707872,128.92,128.89,3.93744607]
[1725260165190,0.05707872,128.92,128.9,3.8791]
[1725260170299,3.91247934,128.92,128.9,3.8791]
[1725260170801,3.91247934,128.92,128.89,3.93744607]
[1725260171299,7.79107934,128.92,128.89,0.05814607]
[1725260176600,3.91247934,128.92,128.89,0.05814607]
[1725260177403,3.8791,128.9,128.89,0.05814607]
[1725260179404,8.35,128.9,128.84,3.8808]
[1725260179801,8.35,128.9,128.82,93.13711268]
[1725260179802,8.35,128.89,128.82,93.13711268]
[1725260180404,3.93586104,128.87,128.84,0.05866444]
[1725260181199,3.8804,128.86,128.84,0.05866444]
[1725260181396,0.05576104,128.87,128.84,0.05866444]
[1725260181802,3.93586104,128.87,128.84,0.05866444]
[1725260183103,0.05576104,128.87,128.84,3.93956444]
[1725260187302,3.93576104,128.87,128.84,3.93956444]
[1725260187900,0.05576104,128.87,128.85,3.8804]
[1725260190201,0.05576104,128.87,128.86,3.8803]
[1725260205913,1.4194,128.95,128.89,3.8792]
[1725260206217,1.4194,128.95,128.89,12.2292]
[1725260206816,3.878,128.94,128.9,3.8791]
[1725260207118,0.04944154,128.93,128.91,0.05331573]
[1725260209010,0.04944154,128.93,128.91,3.93211573]
[1725260209719,0.04944154,128.93,128.92,3.8785]
[1725260210721,3.8785,128.92,128.91,0.05331573]
[1725260210914,0.04944154,128.93,128.91,0.05331573]
[1725260215823,0.04944154,128.93,128.91,3.93201573]
[1725260217430,0.04944154,128.93,128.91,0.05331573]
[1725260222517,0.04944154,128.93,128.91,3.93211573]
[1725260245241,0.04944154,128.93,128.91,0.05331573]
[1725260246340,3.92764154,128.93,128.91,0.05331573]
[1725260262057,3.8785,128.92,128.91,0.05331573]
[1725260262253,13.50732022,128.92,128.82,93.13711268]
[1725260262463,8.35,128.89,128.82,93.13711268]
[1725260263257,0.05358706,128.87,128.84,0.0568561]
[1725260263759,3.93378706,128.87,128.84,0.0568561]
[1725260264761,3.8806,128.85,128.84,0.0568561]
[1725260264954,0.05358706,128.87,128.84,0.0568561]
[1725260265260,1.43978706,128.87,128.84,0.0568561]
[1725260266160,3.8805,128.86,128.84,0.0568561]
[1725260266764,5.31988706,128.87,128.84,0.0568561]
[1725260267063,0.05358706,128.87,128.84,0.0568561]
[1725260267764,0.05358706,128.87,128.84,3.9375561]
[1725260268067,0.05358706,128.87,128.84,0.0568561]
[1725260268265,0.05358706,128.87,128.85,3.8806]
[1725260268467,0.05358706,128.87,128.84,0.0568561]
[1725260269168,0.05358706,128.87,128.85,3.8806]
[1725260269367,0.05358706,128.87,128.84,8.4068561]
[1725260269961,0.05358706,128.87,128.86,3.8803]
[1725260280469,0.05358706,128.87,128.85,3.8805]
[1725260283084,0.05358706,128.87,128.84,0.0568561]
[1725260283378,0.05358706,128.87,128.85,3.8806]
[1725260291287,0.05358706,128.87,128.84,3.9375561]
[1725260292889,0.05358706,128.87,128.84,0.0568561]
[1725260293094,3.93358706,128.87,128.84,0.0568561]
[1725260295894,3.8806,128.85,128.84,0.0568561]
[1725260296088,7.6870492,128.85,128.84,0.0568561]
[1725260298087,3.8811,128.84,128.8,3.8819]
[1725260298290,8.35,128.84,128.79,3.8823]
[1725260298588,3.82519036,128.83,128.79,3.8823]
[1725260298785,3.8815,128.82,128.78,3.8826]
[1725260299294,3.8815,128.82,128.79,0.0569618]
[1725260299295,0.05845083,128.81,128.79,0.0569618]
[1725260301189,0.05845083,128.81,128.79,3.9393618]
[1725260302290,0.05845083,128.81,128.79,0.0569618]
[1725260316297,0.05845083,128.81,128.79,3.9393618]
[1725260320905,0.05845083,128.81,128.79,0.0569618]
[1725260322512,8.40845083,128.81,128.79,0.0569618]
[1725260322720,8.35,128.8,128.79,0.0569618]
[1725260323110,12.2321,128.8,128.79,0.0569618]
[1725260329322,3.8821,128.8,128.79,0.0569618]
[1725260332614,9.78205083,128.81,128.79,0.0569618]
[1725260333721,3.8821,128.8,128.79,0.0569618]
[1725260336123,12.2321,128.8,128.79,0.0569618]
[1725260340129,3.8821,128.8,128.79,0.0569618]
[1725260340720,12.2321,128.8,128.79,0.0569618]
[1725260340927,3.8829,128.78,128.71,99.09300737]
[1725260341130,8.35,128.77,128.71,102.91735897]
[1725260341732,8.35,128.77,128.74,3.8839]
[1725260341927,8.40202395,128.77,128.74,3.93297635]
[1725260342630,12.28512395,128.77,128.74,0.04907635]
[1725260346025,3.93512395,128.77,128.74,0.04907635]
[1725260346929,0.05202395,128.77,128.74,3.93297635]
[1725260347339,0.05202395,128.77,128.74,0.04907635]
[1725260347340,8.40202395,128.77,128.74,0.04907635]
[1725260347530,8.35,128.76,128.74,0.04907635]
[1725260347726,3.91581558,128.75,128.74,0.04907635]
[1725260348633,1.4678,128.76,128.74,0.04907635]
[1725260348931,5.37412503,128.76,128.74,0.04907635]
[1725260349133,9.25762503,128.76,128.74,0.04907635]
[1725260352039,3.8836,128.75,128.74,0.04907635]
[1725260352740,12.2336,128.75,128.74,0.04907635]
[1725260358544,8.35,128.75,128.74,0.04907635]
[1725260361444,9.25762503,128.76,128.74,0.04907635]
[1725260361745,0.05202395,128.77,128.74,0.04907635]
[1725260362053,0.05202395,128.77,128.75,3.8836]
[1725260364243,0.05202395,128.77,128.76,3.8833]
[1725260364449,5.2758,128.82,128.75,15.00561393]
[1725260364450,1.3942,128.82,128.75,15.00561393]
[1725260364752,1.3942,128.82,128.78,3.8826]
[1725260365345,0.05490311,128.81,128.79,0.05350999]
[1725260371452,0.05490311,128.81,128.79,3.93570999]
[1725260372858,0.05490311,128.81,128.79,0.05350999]
[1725260377968,0.05490311,128.81,128.8,3.8821]
[1725260382365,0.05490311,128.81,128.79,3.93580999]
[1725260385558,0.05490311,128.81,128.8,3.8821]
[1725260395466,0.05490311,128.81,128.79,0.05350999]
[1725260396570,0.05490311,128.81,128.79,3.93570999]
[1725260396770,0.05490311,128.81,128.79,0.05350999]
[1725260397569,0.05490311,128.81,128.8,3.8821]
[1725260397775,0.05490311,128.81,128.79,0.05350999]
[1725260398978,0.05490311,128.81,128.79,3.93570999]
[1725260402476,0.05490311,128.81,128.79,0.05350999]
[1725260403273,0.05490311,128.81,128.79,3.93590999]
[1725260410096,0.05490311,128.81,128.8,3.8821]
[1725260410890,3.78762022,128.92,128.79,8.40350999]
[1725260411097,225.0,128.94,128.83,8.35]
[1725260411098,12.6488,128.91,128.83,8.35]
[1725260411296,3.8793,128.9,128.83,8.35]
[1725260411501,3.8793,128.9,128.85,3.8805]
[1725260411900,0.05110987,128.89,128.86,0.05454646]
[1725260413095,8.40110987,128.89,128.86,0.05454646]
[1725260413301,8.35,128.87,128.79,1.4034]
[1725260413502,1.352,128.86,128.79,9.7534]
[1725260413798,3.79160923,128.85,128.81,3.8816]
[1725260414188,0.05495196,128.84,128.82,0.05149247]
[1725260416005,0.05495196,128.84,128.82,3.93289247]
[1725260419003,0.05495196,128.84,128.83,3.8812]
[1725260427510,0.05495196,128.84,128.82,3.93289247]
[1725260427708,0.05495196,128.84,128.82,0.05149247]
[1725260428306,12.2312,128.83,128.82,0.05149247]
[1725260428618,8.35,128.83,128.76,2.7596]
[1725260429002,3.96345125,128.85,128.78,8.35]
[1725260429220,3.96345125,128.85,128.79,8.35]
[1725260429404,0.05056615,128.83,128.81,0.05555693]
[1725260431310,0.05056615,128.83,128.81,3.93735693]
[1725260434708,0.05056615,128.83,128.81,0.05555693]
[1725260435616,3.93196615,128.83,128.81,0.05555693]
[1725260436017,0.05056615,128.83,128.81,0.05555693]
[1725260442820,0.05056615,128.83,128.81,3.93735693]
[1725260444114,0.05056615,128.83,128.82,3.8815]
[1725260448419,0.05056615,128.83,128.81,3.93735693]
[1725260450536,0.05056615,128.83,128.82,3.8815]
[1725260456539,0.05056615,128.83,128.81,0.05555693]
[1725260459142,0.05056615,128.83,128.81,3.93735693]
[1725260460038,0.05056615,128.83,128.82,3.8815]
[1725260461843,0.05056615,128.83,128.81,0.05555693]
[1725260462045,0.05056615,128.83,128.82,8.35]
[1725260462342,1.4245,128.89,128.82,12.2051692]
[1725260462552,64.53466268,128.91,128.85,8.35]
[1725260462836,1.4296,128.96,128.88,8.35]
[1725260463047,1.3766,128.95,128.88,8.35]
[1725260463439,0.05616454,128.93,128.9,0.05534392]
[1725260464444,0.05616454,128.93,128.9,3.93444392]
[1725260466343,0.05616454,128.93,128.91,8.35]
[1725260466843,1.3616,128.98,128.91,8.35]
[1725260467051,1.3616,128.98,128.94,3.8778]
[1725260467052,5.27061636,128.98,128.94,3.8778]
[1725260467343,1.3616,128.98,128.94,3.8778]
[1725260467738,0.05190514,128.97,128.95,0.05690537]
[1725260468845,7.761,129.11,128.95,8.40690537]
[1725260469044,601.034,129.14,128.96,8.35]
[1725260469045,1.3859,129.03,128.96,8.35]
[1725260469248,5.2612,129.03,128.97,3.8768]
[1725260469948,0.05757175,129.01,128.99,0.05478646]
[1725260471656,0.05757175,129.01,128.99,3.93108646]
[1725260471852,0.05757175,129.01,128.99,0.05478646]
[1725260476458,0.05757175,129.01,128.99,3.93108646]
[1725260476760,0.05757175,129.01,128.99,0.05478646]
[1725260477447,0.05757175,129.01,129.0,3.8761]
[1725260481656,0.05757175,129.01,129.0,12.2261]
[1725260481957,1.4695,129.08,129.0,8.35]
[1725260482154,1.4695,129.08,128.96,1.4122]
[1725260482155,1.4695,129.08,129.03,8.35]
[1725260482465,3.80376656,129.07,129.03,12.225]
[1725260482660,9.8195,129.08,128.96,1.4122]
[1725260482865,0.05913793,129.03,129.01,3.92647548]
[1725260483159,0.05255387,129.03,129.01,3.92647548]
[1725260485560,0.05255387,129.03,129.02,3.8755]
[1725260494470,0.05255387,129.03,129.01,0.05087548]
[1725260495866,1.44305387,129.03,129.01,0.05087548]
[1725260496265,3.8755,129.02,129.01,0.05087548]
[1725260496471,1.44305387,129.03,129.01,0.05087548]
[1725260496765,3.8755,129.02,129.01,0.05087548]
[1725260496966,1.44305387,129.03,128.95,1.4035]
[1725260497168,1.4649,129.02,128.96,8.35]
[1725260497363,7.71278113,129.01,128.96,12.2271]
[1725260498070,7.71278113,129.01,128.97,0.05630383]
[1725260498261,0.05650408,129.0,128.97,0.05630383]
[1725260498971,0.05650408,129.0,128.97,3.93330383]
[1725260499369,0.05650408,129.0,128.97,0.05630383]
[1725260500771,0.05650408,129.0,128.97,3.93330383]
[1725260500972,0.05650408,129.0,128.97,12.28330383]
[1725260501366,0.05650408,129.0,128.98,3.8765]
[1725260501566,0.05650408,129.0,128.97,8.40630383]
[1725260504775,0.05650408,129.0,128.97,12.28330383]
[1725260505869,3.93260408,129.0,128.97,0.05630383]
[1725260506076,0.05650408,129.0,128.97,0.05630383]
[1725260507874,3.8767,128.98,128.97,0.05630383]
[1725260510277,3.8775,128.96,128.91,8.35]
[1725260510779,3.8776,128.95,128.91,8.35]
[1725260511177,0.05660572,128.94,128.92,0.05609041]
[1725260514572,0.05660572,128.94,128.93,3.8782]
[1725260516391,1.4113,129.0,128.92,12.29943702]
[1725260516576,1.4113,129.0,128.97,8.35]
[1725260517375,1.46047952,129.0,128.97,8.40257944]
[1725260517884,1.46047952,129.0,128.97,12.27957944]
[1725260518581,0.04917952,129.0,128.98,3.8767]
[1725260518772,0.04917952,129.0,128.98,8.35]
[1725260521279,0.04917952,129.0,128.98,12.2265]
[1725260521890,3.875,129.04,128.99,3.8762]
[1725260522783,0.05792025,129.03,129.0,0.05493202]
[1725260522985,0.05792025,129.03,129.0,3.93093202]
[1725260528284,0.05792025,129.03,129.0,0.05493202]
[1725260528983,3.93322025,129.03,129.0,0.05493202]
[1725260529387,0.05792025,129.03,129.0,0.05493202]
[1725260533504,3.93322025,129.03,129.0,0.05493202]
[1725260541111,0.05792025,129.03,129.0,0.05493202]
[1725260541891,0.05792025,129.03,129.0,3.92246081]
[1725260542097,0.05792025,129.03,129.01,12.2255]
[1725260543100,0.05792025,129.03,129.02,3.8755]
[1725260545901,0.05792025,129.03,129.02,12.2255]
[1725260548902,7.83305678,129.08,129.02,12.2255]
[1725260549103,1.4589,129.14,129.05,3.8746]
[1725260549406,8.35,129.12,129.05,3.8746]
[1725260549604,12.16905679,129.12,129.05,3.8746]
[1725260550007,3.92288803,129.1,129.07,0.05393248]
[1725260550205,0.04958803,129.1,129.07,0.05393248]
[1725260550406,0.04958803,129.1,129.07,8.40393248]
[1725260551204,0.04958803,129.1,129.08,3.8735]
[1725260551608,0.04958803,129.1,129.07,8.40393248]
[1725260551912,0.04958803,129.1,129.07,12.27783248]
[1725260552705,0.04958803,129.1,129.07,0.05393248]
[1725260553107,3.92288803,129.1,129.07,0.05393248]
[1725260558106,3.8735,129.09,129.07,0.05393248]
[1725260558306,8.35,129.09,128.93,33.7508]
[1725260558508,11.2023,129.08,129.0,8.35]
[1725260558808,3.8745,129.06,129.0,8.35]
[1725260559007,3.85470747,129.05,129.0,8.35]
[1725260559416,0.05928983,129.04,129.01,3.93478317]
[1725260561320,0.05928983,129.04,129.01,0.05918317]
[1725260564017,3.93418983,129.04,129.01,0.05918317]
[1725260564212,8.35,129.03,129.01,0.05918317]
[1725260564513,3.8755,129.02,129.01,0.05918317]
[1725260564719,5.2789,129.02,129.01,0.05918317]
[1725260567025,3.8763,129.0,128.96,3.8772]
[1725260568118,0.04907125,128.99,128.97,0.05906851]
[1725260569423,0.04907125,128.99,128.97,3.93606851]